bitfinex-derivatives/quotes_BTCF0:USTF0_20220102
["timestamp","ask_amount","ask_price","bid_price","bid_amount"]
[1641094998521,0.18,47426.0,47421.0,0.14033567]
[1641094998720,0.18,47423.0,47415.0,1.18766532]
[1641094998921,0.18,47423.0,47422.0,0.3553213]
[1641094999923,0.18,47423.0,47417.0,0.3553213]
[1641095000727,1.61248927,47423.0,47413.0,0.3553213]
[1641095001723,1.43248927,47422.0,47413.0,0.3553213]
[1641095002126,1.541452,47422.0,47413.0,0.3553213]
[1641095002728,1.31791002,47419.0,47414.0,0.3553213]
[1641095003630,1.31791002,47419.0,47413.0,0.3553213]
[1641095004532,1.31791002,47419.0,47414.0,0.3553213]
[1641095006742,1.49791002,47419.0,47414.0,0.3553213]
[1641095007236,0.009794,47418.0,47414.0,0.3553213]
[1641095007436,0.18,47415.0,47413.0,0.35604912]
[1641095007637,0.06201,47415.0,47413.0,0.35604912]
[1641095008037,0.20234567,47415.0,47413.0,0.35604912]
[1641095008238,0.18,47414.0,47413.0,0.35604912]
[1641095008639,0.18,47414.0,47412.0,0.59329588]
[1641095008841,1.31791002,47414.0,47406.0,0.59329588]
[1641095009539,1.31791002,47414.0,47407.0,0.73363155]
[1641095011642,1.31791002,47411.0,47410.0,0.59329588]
[1641095012945,1.43248927,47414.0,47410.0,0.59329588]
[1641095013144,1.43248927,47413.0,47409.0,0.59329588]
[1641095013744,1.3188783,47410.0,47409.0,0.59329588]
[1641095015547,1.43248927,47413.0,47409.0,0.59329588]
[1641095016147,0.08992162,47410.0,47409.0,1.29704192]
[1641095017463,1.31886991,47410.0,47409.0,1.29704192]
[1641095018165,0.18,47411.0,47409.0,1.29704192]
[1641095018567,0.14751479,47410.0,47409.0,1.29704192]
[1641095018767,0.29541641,47410.0,47409.0,0.95063503]
[1641095018969,0.29541641,47410.0,47409.0,0.35733915]
[1641095019768,1.60409918,47410.0,47407.0,0.35733915]
[1641095019967,1.54611918,47410.0,47407.0,0.35733915]
[1641095020166,1.40839839,47410.0,47407.0,0.35733915]
[1641095020368,0.14033567,47415.0,47408.0,0.35733915]
[1641095020369,0.08992162,47409.0,47408.0,0.35733915]
[1641095020667,0.08992162,47409.0,47408.0,0.43764915]
[1641095021270,0.08992162,47409.0,47408.0,0.08031]
[1641095021872,1.31847677,47413.0,47408.0,0.9109467]
[1641095022469,1.31847677,47412.0,47410.0,0.35723241]
[1641095025575,1.40839839,47412.0,47410.0,0.35723241]
[1641095026073,1.58839839,47412.0,47410.0,0.35723241]
[1641095026374,1.40839839,47412.0,47409.0,0.35723241]
[1641095026873,0.18,47411.0,47409.0,0.35723241]
[1641095027077,0.35766162,47411.0,47408.0,0.95261976]
[1641095027276,0.35766162,47411.0,47408.0,0.35723241]
[1641095028175,1.31853423,47409.0,47406.0,0.35723241]
[1641095028374,0.18,47407.0,47406.0,0.35723241]
[1641095028577,0.32033567,47407.0,47401.0,1.18766532]
[1641095028776,0.18,47404.0,47401.0,1.18766532]
[1641095029076,0.009794,47403.0,47402.0,0.59729969]
[1641095029776,0.009794,47403.0,47399.0,1.18766532]
[1641095029976,0.009794,47403.0,47395.0,0.14033567]
[1641095029977,1.3187585,47402.0,47395.0,0.14033567]
[1641095030578,0.14033567,47401.0,47395.0,0.14033567]
[1641095030878,1.54410417,47401.0,47395.0,0.14033567]
[1641095033382,0.22534567,47401.0,47395.0,0.14033567]
[1641095034582,0.22534567,47401.0,47396.0,1.18766532]
[1641095036789,0.22534567,47401.0,47395.0,0.14033567]
[1641095036790,1.54410417,47401.0,47395.0,0.14033567]
[1641095037789,1.54410417,47401.0,47395.0,0.97744788]
[1641095038188,1.54410417,47401.0,47395.0,0.83711221]
[1641095038589,1.54410417,47401.0,47397.0,0.59796767]
[1641095039189,0.22534567,47401.0,47400.0,0.35890343]
[1641095039488,0.40534567,47401.0,47400.0,0.35890343]
[1641095040092,0.22534567,47401.0,47400.0,0.35890343]
[1641095040291,0.40534567,47401.0,47400.0,0.35890343]
[1641095040693,1.24353342,47401.0,47391.0,0.4992391]
[1641095041295,0.35922525,47398.0,47391.0,0.4992391]
[1641095042097,0.35922525,47397.0,47391.0,0.14033567]
[1641095044197,0.35922525,47396.0,47391.0,0.14033567]
[1641095045602,0.35922525,47397.0,47391.0,0.14033567]
[1641095055535,0.35922525,47397.0,47391.0,0.4992391]
[1641095058127,0.35922525,47397.0,47391.0,0.14033567]
[1641095059326,0.78118777,47398.0,47391.0,0.4992391]
[1641095061731,0.35922525,47397.0,47393.0,0.35890343]
[1641095064137,0.08994444,47397.0,47396.0,0.83711221]
[1641095064838,0.08994444,47397.0,47396.0,1.55104594]
[1641095065437,0.08994444,47397.0,47396.0,0.71393373]
[1641095066041,1.40708535,47400.0,47396.0,1.18766532]
[1641095066739,0.08994444,47397.0,47396.0,1.18766532]
[1641095067237,1.31714091,47400.0,47396.0,1.18766532]
[1641095067238,1.40708535,47400.0,47396.0,1.18766532]
[1641095068239,0.08994444,47400.0,47398.0,0.83643341]
[1641095068839,0.08994444,47400.0,47396.0,1.18766532]
[1641095069040,0.08994444,47400.0,47399.0,1.18866532]
[1641095069340,0.08994444,47400.0,47399.0,1.25446532]
[1641095070140,0.08994444,47400.0,47399.0,0.0668]
[1641095070339,1.40708535,47405.0,47399.0,0.0668]
[1641095070543,1.40708535,47405.0,47399.0,0.0658]
[1641095070940,1.40708535,47405.0,47404.0,0.5967445]
[1641095070941,1.31714091,47405.0,47404.0,0.5967445]
[1641095071540,0.08994444,47404.0,47403.0,0.8354423]
[1641095072042,0.08994444,47404.0,47401.0,1.193489]
[1641095072241,1.40708535,47406.0,47401.0,1.90742273]
[1641095073042,1.40708535,47406.0,47405.0,0.59667068]
[1641095074843,0.14033567,47407.0,47405.0,0.59667068]
[1641095075043,0.14033567,47407.0,47399.0,0.0658]
[1641095075243,0.14033567,47407.0,47397.0,0.32033567]
[1641095075943,0.08992771,47406.0,47405.0,0.83506046]
[1641095076845,0.08992771,47406.0,47404.0,0.83506046]
[1641095077444,1.4087903,47406.0,47404.0,0.83506046]
[1641095078144,0.08992771,47406.0,47405.0,0.83506046]
[1641095080149,1.45919826,47408.0,47405.0,0.83506046]
[1641095080549,0.08992771,47406.0,47405.0,0.83506046]
[1641095081350,1.4087903,47407.0,47405.0,0.83506046]
[1641095082051,0.08992771,47407.0,47405.0,0.83506046]
[1641095082852,1.45919826,47408.0,47405.0,0.83506046]
[1641095083151,0.35927679,47406.0,47403.0,0.35738209]
[1641095085953,0.14033567,47408.0,47402.0,0.35738209]
[1641095085954,0.49961246,47408.0,47402.0,0.35738209]
[1641095088655,0.49961246,47408.0,47403.0,0.35738209]
[1641095088656,0.14033567,47408.0,47403.0,0.35738209]
[1641095089658,0.14033567,47408.0,47404.0,0.18]
[1641095090156,0.14033567,47408.0,47404.0,0.53738209]
[1641095090757,0.35927679,47410.0,47405.0,0.009794]
[1641095091460,0.95789246,47411.0,47405.0,0.36717609]
[1641095091759,0.35927679,47411.0,47405.0,0.36717609]
[1641095092161,0.35927679,47412.0,47406.0,0.35738209]
[1641095093662,0.35927679,47411.0,47405.0,0.50751176]
[1641095094065,0.35927679,47411.0,47405.0,0.49771776]
[1641095095164,0.35927679,47410.0,47405.0,0.14033567]
[1641095096067,0.35927679,47409.0,47405.0,0.14033567]
[1641095098678,0.35927679,47409.0,47403.0,0.35738209]
[1641095099988,0.35927679,47409.0,47404.0,0.18]
[1641095100185,0.35927679,47409.0,47403.0,0.35738209]
[1641095100387,0.35927679,47409.0,47405.0,0.14033567]
[1641095100586,0.35927679,47409.0,47405.0,0.22360567]
[1641095100788,0.35927679,47410.0,47405.0,0.22360567]
[1641095101388,0.35927679,47410.0,47405.0,0.08327]
[1641095102290,0.36907079,47411.0,47405.0,0.44065209]
[1641095102592,0.36907079,47411.0,47405.0,0.58098776]
[1641095103889,0.35927679,47410.0,47405.0,0.58098776]
[1641095104693,0.35927679,47410.0,47409.0,0.18]
[1641095104890,0.35927679,47410.0,47409.0,0.20109123]
[1641095105092,0.35927679,47410.0,47409.0,0.02109123]
[1641095105290,0.35927679,47410.0,47409.0,0.20109123]
[1641095105891,0.35927679,47411.0,47409.0,0.20109123]
[1641095106091,0.35927679,47411.0,47409.0,0.02109123]
[1641095106291,0.35927679,47411.0,47410.0,0.18]
[1641095106491,0.35927679,47411.0,47409.0,0.02109123]
[1641095106893,0.83806193,47414.0,47409.0,0.02109123]
[1641095106894,0.35927679,47414.0,47410.0,0.18]
[1641095107797,0.83806193,47417.0,47413.0,0.35738209]
[1641095107996,1.31886259,47417.0,47413.0,0.35738209]
[1641095108593,0.08991439,47416.0,47413.0,0.35738209]
[1641095111596,1.40877698,47416.0,47412.0,0.35738209]
[1641095112597,0.18,47414.0,47412.0,0.35738209]
[1641095113399,0.32696562,47412.0,47407.0,1.19294351]
[1641095113597,0.18,47409.0,47408.0,0.37868425]
[1641095113799,0.189794,47409.0,47408.0,0.37868425]
[1641095114297,0.189794,47409.0,47400.0,1.31223786]
[1641095114498,0.14033567,47401.0,47400.0,1.31223786]
[1641095114698,0.22113567,47401.0,47400.0,1.31223786]
[1641095114899,0.22113567,47401.0,47395.0,1.31223786]
[1641095116100,0.08991439,47400.0,47393.0,1.31223786]
[1641095116901,0.08991439,47400.0,47392.0,2.01870381]
[1641095118003,0.009794,47399.0,47392.0,0.70646595]
[1641095118603,0.08991439,47398.0,47391.0,0.70646595]
[1641095119013,2.48539004,47392.0,47386.0,1.43153222]
[1641095119203,0.18,47388.0,47379.0,1.49877647]
[1641095119402,0.25413,47388.0,47378.0,2.29015855]
[1641095120003,0.18,47379.0,47378.0,2.29015855]
[1641095120204,0.009794,47378.0,47364.0,0.99775103]
[1641095120406,0.18,47376.0,47365.0,1.5582923]
[1641095120606,0.32033567,47376.0,47365.0,1.69862797]
[1641095120803,0.32033567,47376.0,47365.0,1.71062327]
[1641095121004,0.32033567,47376.0,47365.0,0.15233097]
[1641095121204,0.32033567,47376.0,47371.0,1.19936021]
[1641095122102,0.18,47373.0,47371.0,1.19936021]
[1641095122304,0.0309099,47372.0,47355.0,0.44640621]
[1641095122505,0.14033567,47366.0,47355.0,0.44640621]
[1641095122705,0.21403567,47366.0,47355.0,0.44640621]
[1641095122907,0.009794,47365.0,47357.0,0.0119975]
[1641095123103,0.18,47361.0,47355.0,0.44640621]
[1641095123907,0.18,47361.0,47351.0,0.72200529]
[1641095123908,0.18,47361.0,47351.0,0.58674188]
[1641095124212,0.59805678,47363.0,47351.0,0.58674188]
[1641095124612,0.14033567,47360.0,47352.0,0.01199833]
[1641095125608,0.14033567,47360.0,47352.0,1.45160643]
[1641095125809,0.35852528,47357.0,47352.0,1.45160643]
[1641095126208,0.59805678,47359.0,47352.0,1.45160643]
[1641095126209,0.35852528,47356.0,47354.0,1.31969699]
[1641095127210,0.009794,47355.0,47354.0,1.31969699]
[1641095127612,0.009794,47355.0,47351.0,0.14033567]
[1641095127613,0.36831928,47355.0,47353.0,1.31969699]
[1641095128410,0.009794,47355.0,47353.0,1.31969699]
[1641095128610,0.14033567,47354.0,47353.0,1.31969699]
[1641095128811,0.97761516,47354.0,47351.0,1.31969699]
[1641095129514,0.97761516,47354.0,47343.0,0.20112042]
[1641095129515,0.83727949,47352.0,47348.0,1.31969699]
[1641095131112,0.35822906,47350.0,47349.0,1.31969699]
[1641095131512,0.35822906,47350.0,47346.0,1.57994377]
[1641095131513,0.60684244,47350.0,47348.0,1.31969699]
[1641095132415,0.59704844,47349.0,47347.0,1.31969699]
[1641095132913,1.43432793,47349.0,47346.0,1.46003266]
[1641095133116,0.59704844,47348.0,47346.0,1.46003266]
[1641095134315,0.59704844,47349.0,47347.0,1.44415749]
[1641095137320,0.59704844,47350.0,47348.0,1.31969699]
[1641095138423,0.009794,47356.0,47346.0,0.32033567]
[1641095138620,0.32033567,47370.0,47346.0,0.32033567]
[1641095139023,0.6866917,47367.0,47346.0,0.32033567]
[1641095139224,0.18,47361.0,47346.0,0.14033567]
[1641095141438,0.009794,47362.0,47348.0,0.18]
[1641095141637,0.18,47361.0,47346.0,0.14033567]
[1641095141840,0.06,47361.0,47346.0,0.14033567]
[1641095142037,0.009794,47362.0,47348.0,0.18]
[1641095142538,0.009794,47362.0,47349.0,0.8]
[1641095143839,0.18,47361.0,47349.0,0.8]
[1641095144139,0.009794,47362.0,47349.0,0.8]
[1641095144340,0.009794,47362.0,47348.0,0.18]
[1641095144538,0.18,47361.0,47348.0,0.18]
[1641095144839,0.18,47361.0,47346.0,0.14033567]
[1641095145042,0.009794,47362.0,47346.0,0.14033567]
[1641095145043,0.009794,47362.0,47348.0,0.18]
[1641095146241,0.009794,47362.0,47346.0,0.14033567]
[1641095146442,0.009794,47362.0,47350.0,0.18]
[1641095146641,0.009794,47362.0,47348.0,0.02111819]
[1641095146840,0.08593,47361.0,47348.0,0.02111819]
[1641095147143,0.08593,47361.0,47348.0,0.20111819]
[1641095147344,0.26593,47361.0,47348.0,0.20111819]
[1641095148044,0.26593,47361.0,47348.0,0.02111819]
[1641095149342,0.08593,47361.0,47348.0,0.20111819]
[1641095149543,0.009794,47362.0,47348.0,0.20111819]
[1641095150344,0.18,47361.0,47348.0,0.20111819]
[1641095151444,0.18,47361.0,47348.0,0.02111819]
[1641095151847,0.18,47361.0,47348.0,0.20111819]
[1641095154448,0.009794,47362.0,47348.0,0.20111819]
[1641095154849,0.18,47361.0,47348.0,0.20111819]
[1641095155048,0.009794,47362.0,47348.0,0.20111819]
[1641095155248,0.18,47361.0,47348.0,0.20111819]
[1641095156450,0.009794,47362.0,47348.0,0.20111819]
[1641095157754,0.18,47361.0,47348.0,0.20111819]
[1641095158554,0.009794,47362.0,47348.0,0.20111819]
[1641095158755,1.40413383,47359.0,47357.0,0.35784754]
[1641095159360,0.09001508,47358.0,47356.0,0.35784754]
[1641095160058,0.09001508,47358.0,47357.0,0.35784754]
[1641095161466,1.40413383,47359.0,47357.0,0.35784754]
[1641095161959,0.09001508,47358.0,47357.0,0.35784754]
[1641095163561,0.09001508,47358.0,47356.0,0.35784754]
[1641095165062,0.09001508,47358.0,47357.0,0.35784754]
[1641095165864,1.40413383,47358.0,47356.0,0.35784754]
[1641095166765,1.40413383,47358.0,47354.0,0.59637011]
[1641095166766,0.09001508,47357.0,47355.0,0.35784754]
[1641095167366,0.09001508,47357.0,47356.0,0.35784754]
[1641095168270,0.09001508,47358.0,47356.0,0.35784754]
[1641095168769,1.40413383,47358.0,47355.0,0.35784754]
[1641095169576,1.40413383,47358.0,47356.0,0.35784754]
[1641095169577,0.09001508,47357.0,47356.0,0.35784754]
[1641095171371,1.40413383,47357.0,47355.0,0.35784754]
[1641095172473,0.09001508,47356.0,47355.0,0.35784754]
[1641095172971,0.09001508,47357.0,47355.0,0.35784754]
[1641095173473,0.09001508,47357.0,47352.0,0.8349776]
[1641095173680,0.09001508,47357.0,47355.0,0.8349776]
[1641095174980,0.09001508,47358.0,47356.0,0.8349776]
[1641095175475,0.09001508,47358.0,47357.0,0.59998041]
[1641095178381,0.09001508,47358.0,47356.0,0.59998041]
[1641095180585,0.09001508,47358.0,47357.0,0.35999846]
[1641095183689,0.09001508,47358.0,47356.0,0.59998041]
[1641095183890,1.40413383,47358.0,47356.0,0.59998041]
[1641095184492,0.09001508,47357.0,47356.0,0.59998041]
[1641095187794,0.14033567,47360.0,47356.0,0.59998041]
[1641095187996,0.88651111,47366.0,47359.0,0.18]
[1641095188194,0.88651111,47366.0,47359.0,0.02111298]
[1641095188396,2.93324943,47369.0,47359.0,0.11290298]
[1641095188597,1.3802,47369.0,47359.0,0.11290298]
[1641095189504,2.17411356,47369.0,47364.0,0.59997642]
[1641095189704,0.79391356,47369.0,47364.0,0.59997642]
[1641095190507,0.79391356,47369.0,47363.0,0.83996699]
[1641095191106,0.79391356,47371.0,47363.0,0.35975376]
[1641095192406,0.009794,47373.0,47364.0,0.35975376]
[1641095193814,0.75978793,47371.0,47363.0,0.35975376]
[1641095194409,1.87063196,47370.0,47363.0,0.35975376]
[1641095198518,0.56255107,47370.0,47362.0,0.35975376]
[1641095199420,0.35667129,47363.0,47362.0,0.35975376]
[1641095200720,0.35667129,47363.0,47361.0,0.59958961]
[1641095201919,0.35667129,47364.0,47361.0,0.59958961]
[1641095202421,0.35667129,47364.0,47363.0,0.3596573]
[1641095208226,0.35667129,47364.0,47361.0,0.87972444]
[1641095208429,0.35667129,47364.0,47362.0,0.59958961]
[1641095208829,0.35667129,47364.0,47362.0,0.87972444]
[1641095209028,0.35667129,47364.0,47363.0,0.35968422]
[1641095209430,0.35667129,47364.0,47362.0,0.87972444]
[1641095209627,0.35667129,47364.0,47362.0,0.59958961]
[1641095209928,0.009794,47364.0,47362.0,0.59958961]
[1641095210128,0.95240733,47364.0,47362.0,0.17730131]
[1641095210328,0.95240733,47364.0,47360.0,0.35971913]
[1641095211327,0.12092396,47364.0,47360.0,0.35971913]
[1641095211531,0.12092396,47364.0,47353.0,0.35971913]
[1641095211532,1.39809191,47363.0,47353.0,0.35971913]
[1641095211828,1.48660191,47363.0,47353.0,0.35971913]
[1641095212328,0.18,47360.0,47353.0,0.35971913]
[1641095212527,1.48660191,47363.0,47353.0,0.35971913]
[1641095212528,0.18,47355.0,47353.0,0.35971913]
[1641095212730,0.20112323,47355.0,47353.0,0.35971913]
[1641095213232,0.21091723,47355.0,47353.0,0.35971913]
[1641095213431,0.21091723,47355.0,47348.0,0.26661913]
[1641095213432,0.11113604,47354.0,47348.0,0.26661913]
[1641095213633,0.18,47349.0,47348.0,0.26661913]
[1641095213834,0.08057,47349.0,47348.0,0.26661913]
[1641095214231,0.08057,47349.0,47345.0,0.98030266]
[1641095214434,0.08057,47349.0,47345.0,0.14033567]
[1641095215933,0.14057,47349.0,47345.0,0.14033567]
[1641095216134,1.08874924,47349.0,47345.0,0.14033567]
[1641095216535,0.26057,47349.0,47345.0,0.14033567]
[1641095217734,1.08874924,47349.0,47345.0,0.14033567]
[1641095218937,0.26057,47349.0,47345.0,0.14033567]
[1641095219141,0.09003352,47348.0,47346.0,1.08804988]
[1641095220739,0.09003352,47348.0,47347.0,0.60011081]
[1641095223242,0.09003352,47348.0,47347.0,0.17768686]
[1641095223841,0.09003352,47348.0,47346.0,0.17768686]
[1641095224542,0.09003352,47348.0,47345.0,0.83996699]
[1641095224742,0.09003352,47348.0,47345.0,0.36009958]
[1641095224743,1.30808089,47347.0,47345.0,0.36009958]
[1641095224942,0.009794,47346.0,47345.0,0.36009958]
[1641095225646,0.27982752,47346.0,47340.0,1.43303879]
[1641095225845,0.18,47341.0,47340.0,1.43303879]
[1641095226045,0.33012967,47341.0,47340.0,1.43303879]
[1641095226646,0.33012967,47341.0,47340.0,1.19282515]
[1641095226851,0.33012967,47341.0,47337.0,1.19282515]
[1641095227849,0.33012967,47341.0,47333.0,1.19282515]
[1641095227850,1.39811441,47340.0,47333.0,1.19282515]
[1641095228654,0.09003352,47339.0,47333.0,1.19282515]
[1641095228852,0.17953352,47339.0,47333.0,1.19282515]
[1641095229654,0.18,47334.0,47333.0,1.19282515]
[1641095229854,0.189794,47334.0,47333.0,1.19282515]
[1641095230059,0.33012967,47334.0,47332.0,1.38510722]
[1641095231364,0.09003352,47333.0,47332.0,1.19282515]
[1641095231563,0.09003352,47333.0,47329.0,1.19282515]
[1641095231765,0.18,47330.0,47329.0,1.19282515]
[1641095231968,0.20113512,47330.0,47329.0,1.19282515]
[1641095232364,0.20113512,47330.0,47324.0,0.19228207]
[1641095232365,1.59924953,47330.0,47324.0,0.19228207]
[1641095232568,0.18,47327.0,47324.0,0.19228207]
[1641095232767,0.25908,47327.0,47324.0,0.19228207]
[1641095233164,0.42260185,47326.0,47324.0,0.19228207]
[1641095233964,0.14033567,47325.0,47324.0,0.19228207]
[1641095234169,0.23034114,47324.0,47322.0,1.18303115]
[1641095234366,0.18,47323.0,47302.0,0.02113875]
[1641095234568,0.18,47318.0,47302.0,0.02113875]
[1641095234766,0.18,47318.0,47315.0,1.32094512]
[1641095235468,0.18,47318.0,47306.0,1.9464]
[1641095235667,1.42770161,47320.0,47305.0,0.14033567]
[1641095236068,0.14033567,47315.0,47305.0,0.14033567]
[1641095236266,0.22526567,47315.0,47305.0,0.14033567]
[1641095236868,0.35275902,47306.0,47305.0,0.14033567]
[1641095238869,0.35275902,47306.0,47302.0,1.43901413]
[1641095239572,0.58793171,47307.0,47301.0,0.18]
[1641095239769,0.18,47314.0,47301.0,0.18]
[1641095239968,0.6691094,47315.0,47301.0,0.18]
[1641095240168,0.14033567,47308.0,47301.0,0.18]
[1641095242171,0.22526567,47315.0,47306.0,0.18]
[1641095242369,0.14033567,47315.0,47307.0,0.18]
[1641095245271,0.14033567,47315.0,47304.0,0.14033567]
[1641095245972,0.64754901,47315.0,47304.0,0.14033567]
[1641095247072,0.82754901,47315.0,47304.0,0.14033567]
[1641095249076,0.64754901,47315.0,47304.0,0.14033567]
[1641095250877,0.82754901,47315.0,47304.0,0.14033567]
[1641095252780,0.64754901,47315.0,47304.0,0.14033567]
[1641095252980,0.22484567,47315.0,47305.0,0.18]
[1641095253180,0.14033567,47315.0,47305.0,0.18]
[1641095253982,1.28113215,47309.0,47306.0,0.83404487]
[1641095254183,1.28113215,47309.0,47308.0,0.59576476]
[1641095254383,1.28113215,47309.0,47308.0,0.73610043]
[1641095255484,1.28113215,47310.0,47308.0,0.14033567]
[1641095255787,1.28113215,47310.0,47309.0,0.60066003]
[1641095256789,0.09941646,47313.0,47308.0,0.14033567]
[1641095257591,0.82230332,47309.0,47308.0,0.14033567]
[1641095258990,0.82230332,47309.0,47308.0,0.32033567]
[1641095260490,0.82230332,47309.0,47308.0,0.14033567]
[1641095262293,0.09941646,47316.0,47308.0,0.14033567]
[1641095262294,0.82230332,47310.0,47308.0,0.14033567]
[1641095263194,0.82230332,47309.0,47308.0,0.14033567]
[1641095263597,0.92171978,47309.0,47308.0,0.14033567]
[1641095264197,0.09941646,47309.0,47308.0,0.14033567]
[1641095264397,1.28113215,47314.0,47308.0,0.14033567]
[1641095265801,1.28113215,47314.0,47308.0,0.50050745]
[1641095266101,0.82221514,47309.0,47308.0,0.50050745]
[1641095267503,0.82221514,47310.0,47308.0,0.14033567]
[1641095268705,0.35239508,47311.0,47309.0,0.0900995]
[1641095269311,0.35239508,47310.0,47309.0,0.93051054]
[1641095269809,0.35239508,47310.0,47309.0,0.0900995]
[1641095270011,0.35239508,47311.0,47309.0,0.0900995]
[1641095270609,0.35239508,47311.0,47310.0,0.84041177]
[1641095270912,0.35239508,47311.0,47310.0,1.02041177]
[1641095271110,0.35239508,47311.0,47310.0,0.84041177]
[1641095271510,0.35239508,47311.0,47310.0,1.02041177]
[1641095271714,0.35239508,47311.0,47310.0,0.84041177]
[1641095271912,0.35239508,47311.0,47310.0,0.18]
[1641095272113,0.35239508,47311.0,47309.0,0.0900995]
[1641095272313,0.35239508,47313.0,47310.0,1.19146916]
[1641095273616,0.35239508,47314.0,47312.0,0.84032293]
[1641095274917,0.35239508,47314.0,47313.0,0.14033567]
[1641095275717,0.58732513,47315.0,47313.0,0.83067219]
[1641095276420,0.58732513,47315.0,47314.0,0.69033652]
[1641095277319,0.58732513,47315.0,47313.0,0.74057269]
[1641095278721,0.82221514,47315.0,47314.0,0.36015077]
[1641095280925,0.82221514,47315.0,47313.0,0.14033567]
[1641095281426,0.09279586,47318.0,47313.0,0.14033567]
[1641095282225,0.18,47317.0,47313.0,0.14033567]
[1641095282727,0.09279586,47318.0,47313.0,0.14033567]
[1641095282927,0.82164028,47314.0,47313.0,0.14033567]
[1641095284628,0.82164028,47314.0,47311.0,0.60023702]
[1641095285231,0.18,47317.0,47313.0,0.14033567]
[1641095285430,1.28113215,47318.0,47313.0,0.74057269]
[1641095285632,0.18,47314.0,47313.0,0.60023702]
[1641095285830,0.23774,47314.0,47311.0,0.84032293]
[1641095286030,0.08975266,47311.0,47309.0,1.19146916]
[1641095286232,0.181,47310.0,47309.0,1.19146916]
[1641095286631,0.28399739,47310.0,47309.0,1.19146916]
[1641095287031,1.107,47309.0,47300.0,1.05223002]
[1641095287230,0.14033567,47301.0,47300.0,0.05423002]
[1641095287432,0.21967567,47301.0,47300.0,0.05423002]
[1641095287732,0.42082299,47301.0,47296.0,1.31065976]
[1641095287933,0.42082299,47301.0,47290.0,1.31065976]
[1641095287934,0.41982299,47301.0,47290.0,1.31065976]
[1641095288346,0.23982299,47301.0,47290.0,1.31065976]
[1641095288530,0.16148299,47301.0,47291.0,0.01201502]
[1641095289432,0.16148299,47301.0,47289.0,0.32033567]
[1641095289832,0.16148299,47301.0,47292.0,0.01201459]
[1641095290235,0.16148299,47301.0,47290.0,0.01201459]
[1641095290434,0.16148299,47301.0,47289.0,0.32033567]
[1641095290832,0.16148299,47301.0,47291.0,0.01201451]
[1641095291033,0.16148299,47301.0,47290.0,0.01201451]
[1641095291233,0.16148299,47301.0,47292.0,0.01201451]
[1641095291433,0.16148299,47301.0,47291.0,0.01201451]
[1641095291638,0.16148299,47301.0,47289.0,0.32033567]
[1641095292035,0.16148299,47301.0,47292.0,0.01201464]
[1641095292237,0.16148299,47301.0,47290.0,0.01201464]
[1641095292536,0.16148299,47301.0,47289.0,0.32033567]
[1641095292735,0.16148299,47301.0,47291.0,0.01201463]
[1641095292935,0.16148299,47301.0,47290.0,0.01201463]
[1641095293136,0.16148299,47301.0,47292.0,0.01201463]
[1641095293336,0.16148299,47301.0,47291.0,0.01201463]
[1641095293635,0.16148299,47301.0,47289.0,0.32033567]
[1641095293837,0.16148299,47301.0,47292.0,0.01201462]
[1641095294037,0.16148299,47301.0,47290.0,0.01201462]
[1641095294237,0.16148299,47301.0,47289.0,0.14033567]
[1641095294538,0.16148299,47301.0,47291.0,0.01201461]
[1641095294737,0.16148299,47301.0,47290.0,0.01201461]
[1641095295138,0.16148299,47301.0,47292.0,0.01201461]
[1641095295337,0.16148299,47301.0,47291.0,0.01201461]
[1641095295639,0.16148299,47301.0,47293.0,0.01201461]
[1641095295838,0.16148299,47301.0,47292.0,0.01201461]
[1641095296037,0.16148299,47301.0,47289.0,0.14033567]
[1641095296637,0.16148299,47301.0,47290.0,0.01201425]
[1641095297039,0.0211492,47297.0,47290.0,0.01201425]
[1641095297237,0.14033567,47295.0,47286.0,1.829994]
[1641095297438,0.14033567,47295.0,47286.0,0.009794]
[1641095297638,0.14033567,47295.0,47287.0,0.01201499]
[1641095298339,0.47527133,47295.0,47287.0,0.01201499]
[1641095299442,0.47527133,47295.0,47285.0,0.19201499]
[1641095299643,0.0211492,47297.0,47285.0,0.20180899]
[1641095299840,0.35065535,47298.0,47285.0,0.281184]
[1641095300043,0.35065535,47299.0,47285.0,0.101184]
[1641095300240,0.35065535,47299.0,47286.0,1.11901487]
[1641095300440,0.35065535,47299.0,47288.0,1.107]
[1641095300842,0.35065535,47299.0,47292.0,0.18]
[1641095301041,0.49099102,47301.0,47292.0,0.18]
[1641095301241,0.49099102,47301.0,47291.0,0.14033567]
[1641095301642,0.14033567,47301.0,47291.0,0.14033567]
[1641095303347,0.14033567,47301.0,47296.0,0.18]
[1641095303546,0.14033567,47301.0,47296.0,0.06255]
[1641095304449,0.49099102,47301.0,47296.0,0.06255]
[1641095304949,0.14033567,47301.0,47296.0,0.06255]
[1641095305150,0.14033567,47301.0,47291.0,0.14033567]
[1641095305348,0.14033567,47301.0,47290.0,0.009794]
[1641095305552,0.02114864,47298.0,47290.0,0.009794]
[1641095306150,0.02114864,47298.0,47286.0,0.0715]
[1641095306550,0.02114864,47298.0,47287.0,0.01201507]
[1641095306750,0.02114864,47298.0,47286.0,0.0715]
[1641095307352,0.02114864,47298.0,47291.0,0.14033567]
[1641095308251,0.20114864,47298.0,47291.0,0.14033567]
[1641095308452,0.02114864,47298.0,47291.0,0.14033567]
[1641095309253,0.37180399,47298.0,47291.0,0.14033567]
[1641095309453,0.37180399,47298.0,47291.0,0.21445567]
[1641095309652,0.35065535,47298.0,47291.0,0.21445567]
[1641095310054,0.37180331,47299.0,47291.0,0.21445567]
[1641095310856,0.02114796,47299.0,47291.0,0.21445567]
[1641095311562,0.02114796,47299.0,47291.0,0.07412]
[1641095312257,0.02114796,47299.0,47293.0,0.14033567]
[1641095312258,0.37180331,47299.0,47293.0,0.14033567]
[1641095313070,0.35065535,47299.0,47293.0,0.14033567]
[1641095314472,0.52832678,47301.0,47293.0,0.14033567]
[1641095315474,0.18,47299.0,47293.0,0.14033567]
[1641095315674,0.42287448,47296.0,47288.0,0.14033567]
[1641095316774,0.77352983,47296.0,47288.0,0.14033567]
[1641095317375,0.42287448,47296.0,47288.0,0.14033567]
[1641095317578,0.81827551,47289.0,47288.0,0.14033567]
[1641095318874,0.81827551,47290.0,47288.0,0.14033567]
[1641095320180,0.58472126,47289.0,47288.0,0.14033567]
[1641095320783,0.81827551,47290.0,47288.0,0.14033567]
[1641095322077,0.58479167,47289.0,47288.0,1.33965259]
[1641095322879,1.2018626,47302.0,47289.0,0.009794]
[1641095323078,1.2018626,47302.0,47295.0,0.18]
[1641095323280,1.2018626,47302.0,47295.0,0.09089]
[1641095323579,1.2018626,47302.0,47295.0,0.27089]
[1641095323779,1.2018626,47305.0,47295.0,0.27089]
[1641095323978,1.2018626,47305.0,47295.0,0.09089]
[1641095324382,1.2018626,47305.0,47302.0,0.14033567]
[1641095326280,2.01174401,47311.0,47302.0,0.14033567]